fUST/lending_fUST_20240112
["ID","MTS","AMOUNT","RATE_DAILY","PERIOD"]
[311303925,1705054240807,-2976.04,0.00027665,2]
[311303926,1705054240817,-9813.49,0.00027665,2]
[311303927,1705054240826,-544.09,0.00027665,2]
[311303928,1705054240836,-500.0,0.00027665,2]
[311303929,1705054240845,-500.0,0.00027665,2]
[311303930,1705054240854,-1488.13,0.00027665,2]
[311303931,1705054240863,-543.76,0.00027665,2]
[311303932,1705054240872,-502.40708307,0.00027666,2]
[311303933,1705054240882,-500.0,0.00027666,2]
[311303934,1705054240891,-500.0,0.00027666,2]
[311303935,1705054240901,-500.0,0.00027666,2]
[311303936,1705054240910,-500.0,0.00027666,2]
[311303938,1705054240920,-199.84692394,0.00027666,2]
[311303939,1705054240933,-503.26176095,0.00027666,2]
[311303940,1705054240942,-510.47449178,0.00027666,2]
[311303941,1705054240951,-464.35259734,0.00027666,2]
[311303942,1705054240960,-500.0,0.00027666,2]
[311303943,1705054240970,-500.0,0.00027666,2]
[311303944,1705054240979,-500.0,0.00027666,2]
[311303945,1705054240989,-500.0,0.00027666,2]
[311303946,1705054240998,-500.0,0.00027666,2]
[311303947,1705054241007,-500.0,0.00027666,2]
[311303948,1705054241018,-500.0,0.00027666,2]
[311303949,1705054241027,-510.88740699,0.00027666,2]
[311303950,1705054241037,-500.0,0.00027666,2]
[311303952,1705054241046,-570.0,0.00027666,2]
[311303953,1705054241055,-580.19280659,0.00027666,2]
[311303955,1705054241064,-206.36593232,0.00027666,2]
[311303956,1705054241073,-500.0,0.00027666,2]
[311303957,1705054241082,-500.0,0.00027666,2]
[311303958,1705054241092,-500.0,0.00027666,2]
[311303959,1705054241101,-500.0,0.00027666,2]
[311303960,1705054241111,-500.0,0.00027666,2]
[311303961,1705054241120,-502.59292805,0.00027666,2]
[311303962,1705054241129,-500.0,0.00027666,2]
[311303963,1705054241138,-500.0,0.00027666,2]
[311303964,1705054241147,-632.79,0.00027666,2]
[311303965,1705054241157,-500.0,0.00027666,2]
[311303966,1705054241167,-302.39991316,0.00027666,2]
[311303967,1705054241176,-186.60708947,0.00027666,2]
[311303968,1705054241185,-505.14388722,0.00027666,2]
[311303969,1705054241195,-506.10378055,0.00027666,2]
[311303970,1705054241204,-398.04807974,0.00027666,2]
[311303971,1705054241213,-500.0,0.00027666,2]
[311303972,1705054241222,-500.0,0.00027666,2]
[311303973,1705054241232,-500.0,0.00027666,2]
[311303974,1705054241242,-500.0,0.00027666,2]
[311303975,1705054241251,-184.13370995,0.00027666,2]
[311303976,1705054241260,-503.98052669,0.00027666,2]
[311303977,1705054241270,-500.0,0.00027666,2]
[311303978,1705054241279,-500.0,0.00027666,2]
[311303979,1705054241288,-502.74745374,0.00027666,2]
[311303980,1705054241297,-500.0,0.00027666,2]
[311303981,1705054241306,-500.0,0.00027666,2]
[311303982,1705054241316,-500.0,0.00027666,2]
[311303983,1705054241325,-500.0,0.00027666,2]
[311303984,1705054241334,-500.0,0.00027666,2]
[311303985,1705054241343,-500.0,0.00027666,2]
[311303986,1705054241352,-500.0,0.00027666,2]
[311303987,1705054241361,-165.5381675,0.00027666,2]
[311303988,1705054241370,-500.0,0.00027666,2]
[311303989,1705054241379,-500.0,0.00027666,2]
[311303990,1705054241388,-1069.65,0.00027666,2]
[311303991,1705054241397,-500.0,0.00027666,2]
[311303992,1705054241407,-500.0,0.00027666,2]
[311303993,1705054241417,-500.0,0.00027666,2]
[311303994,1705054241426,-500.0,0.00027666,2]
[311303995,1705054241436,-500.0,0.00027667,2]
[311303996,1705054241446,-500.0,0.00027667,2]
[311303997,1705054241456,-645.29078378,0.00027667,2]
[311303998,1705054241466,-500.0,0.00027667,2]
[311303999,1705054241475,-2000.0,0.000278,2]
[311304000,1705054241485,-2000.0,0.0002781,2]
[311304001,1705054241497,-2000.0,0.0002782,2]
[311304002,1705054241506,-2000.0,0.0002783,2]
[311304003,1705054241516,-500.0,0.00027839,2]
[311304004,1705054241525,-500.0,0.00027839,2]
[311304005,1705054241534,-2000.0,0.0002784,2]
[311304006,1705054241543,-6273.81442827,0.0002784,2]
[311304007,1705054241553,-153.70696813,0.0002784,5]
[311304008,1705054241562,-151.69317899,0.00027844,2]
[311304009,1705054241571,-2000.0,0.0002785,2]
[311304010,1705054241580,-2000.0,0.0002786,2]
[311304011,1705054241589,-2000.0,0.0002787,2]
[311304012,1705054241598,-2000.0,0.0002788,2]
[311304013,1705054241606,-2000.0,0.0002789,2]
[311304014,1705054241616,-716.05132078,0.00027898,2]
[311304015,1705054241625,-510.08762846,0.00027898,2]
[311304016,1705054241634,-296597.01444758,0.000279,2]
[311304017,1705054241649,-6566.97235391,0.000279,2]
[311304018,1705054241660,-627.19796159,0.000279,2]
[311304019,1705054241861,-500.0,0.00027391,2]
[311304020,1705054241872,-3785.87166353,0.000279,2]
[311304021,1705054241884,-1999.11174714,0.000279,2]
[311304022,1705054241898,-1500.0,0.000279,2]
[311304023,1705054241913,-2089.10622098,0.000279,2]
[311304024,1705054241927,-10028.29156843,0.000279,2]
[311304025,1705054241942,-1901.62083929,0.000279,2]
[311304040,1705054243098,-1609.20220252,0.000279,2]
[311304041,1705054243158,-5953.63656447,0.000279,2]
[311304042,1705054243173,-25095.11144907,0.000279,2]
[311304051,1705054309754,-716.05132078,0.00017599,2]
[311304052,1705054309782,-11283.94867922,0.000176,2]
[311304053,1705054310060,-12000.0,0.000176,2]
[311304054,1705054310170,-12000.0,0.000176,2]
[311304055,1705054310299,-12000.0,0.000176,2]
[311304056,1705054310393,-12000.0,0.000176,2]
[311304057,1705054310523,-12000.0,0.000176,2]
[311304058,1705054310658,-12000.0,0.000176,2]
[311304059,1705054310736,-12000.0,0.000176,2]
[311304060,1705054310852,-12000.0,0.000176,2]
[311304061,1705054310968,-12000.0,0.000176,2]
[311304062,1705054311081,-12000.0,0.000176,2]
[311304063,1705054311187,-12000.0,0.000176,2]
[311304064,1705054311306,-12000.0,0.000176,2]
[311304065,1705054311423,-12000.0,0.000176,2]
[311304066,1705054311525,-12000.0,0.000176,2]
[311304067,1705054311644,-12000.0,0.000176,2]
[311304068,1705054311879,-12000.0,0.000176,2]
[311304069,1705054311919,-12000.0,0.000176,2]
[311304070,1705054311964,-12000.0,0.000176,2]
[311304071,1705054312077,-12000.0,0.000176,2]
[311304072,1705054312168,-12000.0,0.000176,2]
[311304073,1705054312273,-10242.12965407,0.000176,2]
[311304114,1705055010822,2453.33445567,0.0003,120]
[311304192,1705055432310,-213.03558,0.00022999,2]
[311304194,1705055432319,-872.87113394,0.00022999,2]
[311304196,1705055432328,-500.0,0.00023,2]
[311304197,1705055432338,-155.07443573,0.00023534,2]
[311304198,1705055432347,-977.23301235,0.00023534,2]
[311304270,1705055438359,-2809.82048294,0.00022998,2]
[311304272,1705055438369,-1053.4960321,0.00023534,2]
[311304274,1705055438378,-451.65400802,0.00023539,2]
[311304276,1705055438387,-155.12998699,0.0002354,2]
[311304278,1705055438396,-21694.12248564,0.00023541,2]
[311304280,1705055438408,-3205.87751436,0.00023541,2]
[311304283,1705055438418,-946.0990057,0.00023985,2]
[311304285,1705055438427,-2092.83289665,0.00024726,2]
[311304287,1705055438437,-332.33085601,0.00024726,2]
[311304289,1705055438446,-199.70646134,0.00024726,2]
[311304291,1705055438455,-740.84179056,0.00024726,2]
[311304292,1705055438464,-322.57910218,0.00024726,2]
[311304294,1705055438473,-331.90052711,0.00024726,2]
[311304296,1705055438482,-1732.22038178,0.00024726,2]
[311304298,1705055438491,-732.80598564,0.00024726,2]
[311304301,1705055438501,-868.91393099,0.00024726,2]
[311304303,1705055438510,-331.99139353,0.00024726,2]
[311304304,1705055438519,-2746.20575269,0.00024726,2]
[311304306,1705055438529,-613.7582107,0.00024727,2]
[311304309,1705055438538,-15877.13272686,0.00024727,2]
[311304310,1705055438548,-220.90473448,0.00025,2]
[311304313,1705055438558,-401.17110365,0.00025107,2]
[311304315,1705055438570,-756.69383502,0.00025108,5]
[311304316,1705055438580,-156.86767994,0.00026388,2]
[311304318,1705055438589,-290.40148956,0.00026388,2]
[311304321,1705055438598,-301.18213313,0.00026389,2]
[311304322,1705055438608,-3070.5357447,0.00026389,2]
[311304325,1705055438618,-3822.19,0.00027377,3]
[311304327,1705055438627,-4586.63,0.00027378,3]
[311304328,1705055438637,-154.12710866,0.0002738,2]
[311304330,1705055438646,-500.0,0.00027387,2]
[311304333,1705055438655,-753.41,0.00027387,2]
[311304334,1705055438665,-500.0,0.00027387,2]
[311304336,1705055438674,-500.0,0.00027387,2]
[311304338,1705055438683,-4911.94,0.00027388,2]
[311304340,1705055438692,-500.0,0.00027388,2]
[311304342,1705055438701,-562.77,0.00027388,2]
[311304344,1705055438710,-155.59,0.00027389,2]
[311304346,1705055438719,-500.0,0.00027389,2]
[311304348,1705055438729,-500.0,0.00027389,2]
[311304350,1705055438738,-500.0,0.00027389,2]
[311304353,1705055438748,-500.0,0.00027389,2]
[311304354,1705055438758,-509.91820249,0.00027389,2]
[311304357,1705055438768,-500.0,0.00027389,2]
[311304358,1705055438777,-500.0,0.00027389,2]
[311304359,1705055438786,-500.0,0.00027389,2]
[311304360,1705055438898,-500.0,0.00027389,2]
[311304361,1705055438910,-500.0,0.00027389,2]
[311304362,1705055438919,-500.0,0.00027389,2]
[311304363,1705055438928,-500.0,0.00027389,2]
[311304365,1705055438937,-500.0,0.00027389,2]
[311304366,1705055438946,-500.0,0.00027389,2]
[311304367,1705055438955,-500.0,0.00027389,2]
[311304368,1705055438965,-500.0,0.00027389,2]
[311304370,1705055438975,-500.0,0.00027389,2]
[311304372,1705055438986,-500.0,0.00027389,2]
[311304374,1705055438994,-500.0,0.00027389,2]
[311304376,1705055439005,-501.73,0.00027389,2]
[311304378,1705055439015,-500.0,0.00027389,2]
[311304380,1705055439025,-1085.31,0.00027389,2]
[311304382,1705055439035,-1807.55,0.00027389,2]
[311304383,1705055439044,-505.23403144,0.00027389,2]
[311304385,1705055439053,-500.0,0.00027389,2]
[311304387,1705055439062,-500.0,0.00027389,2]
[311304389,1705055439072,-500.0,0.00027389,2]
[311304392,1705055439083,-500.0,0.00027389,2]
[311304394,1705055439092,-500.0,0.00027389,2]
[311304396,1705055439101,-10100.9,0.00027389,2]
[311304397,1705055439111,-514.22040034,0.00027389,2]
[311304399,1705055439119,-174.61553241,0.00027389,2]
[311304402,1705055439130,-500.0,0.00027389,2]
[311304403,1705055439139,-500.0,0.00027389,2]
[311304406,1705055439148,-500.0,0.00027389,2]
[311304407,1705055439157,-500.0,0.00027389,2]
[311304410,1705055439167,-506.40277622,0.00027389,2]
[311304411,1705055439176,-501.05435325,0.00027389,2]
[311304413,1705055439185,-535.59739701,0.00027389,2]
[311304416,1705055439194,-501.43113503,0.00027389,2]
[311304417,1705055439204,-1829.41,0.00027389,2]
[311304419,1705055439213,-500.0,0.00027389,2]
[311304421,1705055439222,-502.00356295,0.00027389,2]
[311304423,1705055439231,-500.0,0.00027389,2]
[311304425,1705055439240,-500.0,0.00027389,2]
[311304427,1705055439249,-502.04559348,0.00027389,2]
[311304429,1705055439257,-500.0,0.00027389,2]
[311304431,1705055439267,-500.0,0.00027389,2]
[311304433,1705055439276,-2954.38,0.00027389,2]
[311304435,1705055439285,-9868.28,0.00027389,2]
[311304438,1705055439295,-500.0,0.00027389,2]
[311304440,1705055439304,-500.0,0.00027389,2]
[311304442,1705055439313,-500.0,0.00027389,2]
[311304444,1705055439322,-500.0,0.00027389,2]
[311304446,1705055439331,-1472.88,0.00027389,2]
[311304448,1705055439341,-500.0,0.0002739,2]
[311304449,1705055439350,-500.0,0.0002739,2]
[311304451,1705055439359,-598.57269216,0.0002739,2]
[311304453,1705055439369,-500.0,0.0002739,2]
[311304455,1705055439378,-500.0,0.0002739,2]
[311304457,1705055439387,-575.64284376,0.0002739,2]
[311304459,1705055439397,-500.0,0.0002739,2]
[311304461,1705055439406,-500.0,0.0002739,2]
[311304463,1705055439415,-342.78373673,0.0002739,2]
[311304465,1705055439424,-382.29496358,0.0002739,2]
[311304467,1705055439432,-500.0,0.0002739,2]
[311304469,1705055439442,-500.0,0.0002739,2]
[311304471,1705055439451,-500.0,0.0002739,2]
[311304473,1705055439460,-500.0,0.0002739,2]
[311304475,1705055439469,-500.0,0.0002739,2]
[311304477,1705055439477,-364.27366751,0.0002739,2]
[311304479,1705055439486,-501.30025662,0.0002739,2]
[311304481,1705055439496,-500.0,0.0002739,2]
[311304483,1705055439506,-500.0,0.0002739,2]
[311304485,1705055439515,-423.08980733,0.0002739,2]
[311304487,1705055439525,-500.0,0.0002739,2]
[311304489,1705055439535,-500.0,0.0002739,2]
[311304491,1705055439544,-500.0,0.0002739,2]
[311304493,1705055439553,-500.0,0.0002739,2]
[311304495,1705055439563,-530.21598729,0.0002739,2]
[311304497,1705055439572,-500.0,0.0002739,2]
[311304499,1705055439581,-500.0,0.0002739,2]
[311304501,1705055439591,-500.0,0.0002739,2]
[311304503,1705055439600,-603.31,0.0002739,2]
[311304505,1705055439608,-501.47681454,0.0002739,2]
[311304507,1705055439618,-500.0,0.0002739,2]
[311304509,1705055439627,-500.0,0.0002739,2]
[311304511,1705055439636,-515.78038111,0.0002739,2]
[311304513,1705055439645,-502.14628969,0.0002739,2]
[311304515,1705055439654,-500.0,0.0002739,2]
[311304517,1705055439664,-504.1082049,0.0002739,2]
[311304519,1705055439674,-500.0,0.0002739,2]
[311304521,1705055439683,-500.0,0.0002739,2]
[311304522,1705055439692,-515.06000901,0.0002739,2]
[311304524,1705055439702,-500.0,0.0002739,2]
[311304526,1705055439711,-500.0,0.0002739,2]
[311304528,1705055439720,-500.0,0.0002739,2]
[311304530,1705055439729,-500.0,0.0002739,2]
[311304532,1705055439738,-500.0,0.0002739,2]
[311304534,1705055439747,-500.0,0.0002739,2]
[311304536,1705055439756,-500.0,0.0002739,2]
[311304538,1705055439765,-294.04976461,0.0002739,2]
[311304540,1705055439775,-500.0,0.0002739,2]
[311304542,1705055439784,-501.24386082,0.0002739,2]
[311304544,1705055439792,-502.05075626,0.0002739,2]
[311304546,1705055439801,-500.0,0.0002739,2]
[311304548,1705055439811,-500.0,0.0002739,2]
[311304550,1705055439820,-504.80544081,0.0002739,2]
[311304552,1705055439829,-502.04578957,0.0002739,2]
[311304554,1705055439838,-500.0,0.0002739,2]
[311304556,1705055439847,-500.0,0.0002739,2]
[311304558,1705055439856,-500.0,0.0002739,2]
[311304560,1705055439865,-500.0,0.0002739,2]
[311304562,1705055439874,-707.82,0.0002739,2]
[311304563,1705055439883,-500.70399391,0.0002739,2]
[311304565,1705055439892,-459.48932002,0.0002739,2]
[311304567,1705055439902,-500.0,0.0002739,2]
[311304570,1705055439912,-503.72216458,0.0002739,2]
[311304572,1705055439921,-500.0,0.0002739,2]
[311304573,1705055439930,-500.0,0.0002739,2]
[311304575,1705055439939,-500.0,0.0002739,2]
[311304577,1705055439947,-500.83927015,0.0002739,2]
[311304579,1705055439957,-500.0,0.0002739,2]
[311304581,1705055439967,-500.0,0.0002739,2]
[311304583,1705055439976,-500.0,0.0002739,2]
[311304585,1705055439987,-500.0,0.0002739,2]
[311304587,1705055439997,-530.49340494,0.0002739,2]
[311304589,1705055440007,-620.27000169,0.0002739,2]
[311304590,1705055440016,-500.0,0.0002739,2]
[311304591,1705055440026,-502.80420037,0.0002739,2]
[311304593,1705055440036,-500.0,0.0002739,2]
[311304594,1705055440045,-500.0,0.0002739,2]
[311304596,1705055440055,-503.70058373,0.0002739,2]
[311304597,1705055440064,-500.0,0.0002739,2]
[311304599,1705055440074,-500.0,0.0002739,2]
[311304601,1705055440083,-500.0,0.0002739,2]
[311304602,1705055440094,-500.0,0.0002739,2]
[311304604,1705055440103,-500.0,0.0002739,2]
[311304605,1705055440112,-580.58,0.0002739,2]
[311304607,1705055440121,-500.0,0.0002739,2]
[311304608,1705055440130,-515.80389797,0.0002739,2]
[311304610,1705055440139,-500.0,0.0002739,2]
[311304612,1705055440148,-502.2715108,0.0002739,2]
[311304613,1705055440157,-500.0,0.0002739,2]
[311304615,1705055440167,-500.0,0.0002739,2]
[311304616,1705055440176,-815.06,0.0002739,2]
[311304618,1705055440185,-500.0,0.0002739,2]
[311304619,1705055440195,-503.93237141,0.0002739,2]
[311304621,1705055440203,-517.45998874,0.0002739,2]
[311304622,1705055440212,-500.0,0.0002739,2]
[311304624,1705055440220,-500.0,0.0002739,2]
[311304625,1705055440229,-503.15600705,0.0002739,2]
[311304627,1705055440238,-500.0,0.0002739,2]
[311304628,1705055440247,-500.0,0.0002739,2]
[311304630,1705055440256,-500.0,0.0002739,2]
[311304632,1705055440265,-500.0,0.0002739,2]
[311304633,1705055440275,-500.0,0.0002739,2]
[311304636,1705055440284,-500.0,0.0002739,2]
[311304638,1705055440292,-222.03707833,0.0002739,2]
[311304640,1705055440301,-500.0,0.0002739,2]
[311304641,1705055440310,-500.0,0.0002739,2]
[311304643,1705055440319,-500.0,0.0002739,2]
[311304644,1705055440328,-500.0,0.0002739,2]
[311304645,1705055440337,-500.0,0.0002739,2]
[311304646,1705055440346,-502.37025823,0.0002739,2]
[311304648,1705055440355,-500.0,0.0002739,2]
[311304649,1705055440363,-500.0,0.0002739,2]
[311304650,1705055440372,-500.0,0.0002739,2]
[311304652,1705055440381,-500.0,0.0002739,2]
[311304653,1705055440389,-500.0,0.0002739,2]
[311304654,1705055440399,-500.0,0.0002739,2]
[311304657,1705055440408,-500.0,0.0002739,2]
[311304658,1705055440417,-500.0,0.0002739,2]
[311304660,1705055440426,-437.01491593,0.0002739,2]
[311304661,1705055440435,-500.0,0.0002739,2]
[311304663,1705055440444,-502.51546201,0.0002739,2]
[311304664,1705055440454,-468.66183253,0.0002739,2]
[311304666,1705055440463,-500.0,0.0002739,2]
[311304667,1705055440471,-197.14581503,0.0002739,2]
[311304669,1705055440481,-500.0,0.0002739,2]
[311304671,1705055440490,-500.0,0.0002739,2]
[311304672,1705055440499,-502.54990328,0.0002739,2]
[311304674,1705055440509,-509.22561074,0.0002739,2]
[311304675,1705055440519,-500.0,0.0002739,2]
[311304677,1705055440527,-500.0,0.0002739,2]
[311304678,1705055440536,-500.0,0.0002739,2]
[311304680,1705055440545,-500.0,0.0002739,2]
[311304681,1705055440556,-500.0,0.0002739,2]
[311304683,1705055440567,-500.0,0.0002739,2]
[311304685,1705055440576,-500.0,0.0002739,2]
[311304686,1705055440585,-500.0,0.0002739,2]
[311304688,1705055440595,-515.12042207,0.0002739,2]
[311304689,1705055440604,-500.0,0.0002739,2]
[311304691,1705055440613,-501.55397726,0.0002739,2]
[311304693,1705055440622,-500.0,0.0002739,2]
[311304694,1705055440630,-500.0,0.0002739,2]
[311304696,1705055440641,-1172.61,0.0002739,2]
[311304697,1705055440650,-500.0,0.0002739,2]
[311304699,1705055440659,-500.0,0.0002739,2]
[311304700,1705055440669,-500.0,0.0002739,2]
[311304702,1705055440679,-500.0,0.0002739,2]
[311304704,1705055440687,-647.94753435,0.0002739,2]
[311304705,1705055440697,-500.0,0.0002739,2]
[311304707,1705055440705,-500.0,0.0002739,2]
[311304709,1705055440715,-500.0,0.00027391,2]
[311304710,1705055440724,-611.61325967,0.00027391,2]
[311304712,1705055440734,-502.40708307,0.00027391,2]
[311304713,1705055440743,-623.26,0.00027391,2]
[311304715,1705055440752,-500.0,0.00027391,2]
[311304717,1705055440761,-508.16948772,0.00027391,2]
[311304718,1705055440770,-500.0,0.00027391,2]
[311304720,1705055440779,-500.0,0.00027391,2]
[311304722,1705055440788,-500.0,0.00027391,2]
[311304723,1705055440797,-500.0,0.00027391,2]
[311304725,1705055440806,-309.92921421,0.00027391,2]
[311304726,1705055440815,-500.0,0.00027391,2]
[311304728,1705055440824,-580.33764453,0.00027391,2]
[311304730,1705055440833,-500.0,0.00027391,2]
[311304731,1705055440841,-500.0,0.00027391,2]
[311304733,1705055440850,-500.0,0.00027391,2]
[311304735,1705055440860,-500.68671623,0.00027391,2]
[311304736,1705055440868,-536.3838065,0.00027391,2]
[311304738,1705055440877,-500.0,0.00027391,2]
[311304739,1705055440886,-509.29480607,0.00027391,2]
[311304741,1705055440895,-500.0,0.00027391,2]
[311304743,1705055440904,-500.0,0.00027391,2]
[311304744,1705055440913,-500.0,0.00027391,2]
[311304746,1705055440922,-500.0,0.00027391,2]
[311304748,1705055440932,-337.43216097,0.00027391,2]
[311304749,1705055440940,-500.0,0.00027391,2]
[311304751,1705055440949,-500.0,0.00027391,2]
[311304753,1705055440958,-500.0,0.00027391,2]
[311304754,1705055440967,-500.0,0.00027391,2]
[311304756,1705055440975,-302.39991316,0.00027391,2]
[311304757,1705055440984,-500.0,0.00027391,2]
[311304759,1705055440993,-599.90569472,0.00027391,2]
[311304761,1705055441002,-186.60708947,0.00027391,2]
[311304762,1705055441011,-500.0,0.00027391,2]
[311304764,1705055441020,-216.5781608,0.00027391,2]
[311304765,1705055441029,-500.0,0.00027391,2]
[311304767,1705055441038,-500.0,0.00027391,2]
[311304769,1705055441047,-500.0,0.00027391,2]
[311304770,1705055441056,-500.0,0.00027391,2]
[311304772,1705055441065,-500.0,0.00027391,2]
[311304774,1705055441075,-200.23172933,0.00027391,2]
[311304775,1705055441084,-464.35259734,0.00027391,2]
[311304777,1705055441092,-500.0,0.00027391,2]
[311304779,1705055441101,-500.0,0.00027391,2]
[311304780,1705055441110,-505.49293383,0.00027391,2]
[311304782,1705055441119,-500.0,0.00027391,2]
[311304783,1705055441128,-500.0,0.00027391,2]
[311304785,1705055441137,-501.84184187,0.00027391,2]
[311304787,1705055441146,-500.0,0.00027391,2]
[311304788,1705055441155,-503.49569516,0.00027391,2]
[311304790,1705055441164,-500.0,0.00027391,2]
[311304791,1705055441173,-500.0,0.00027391,2]
[311304793,1705055441183,-500.0,0.00027391,2]
[311304795,1705055441192,-500.0,0.00027391,2]
[311304796,1705055441201,-502.97945637,0.00027391,2]
[311304798,1705055441209,-504.4668383,0.00027391,2]
[311304800,1705055441218,-500.0,0.00027391,2]
[311304801,1705055441228,-204.44792926,0.00027391,2]
[311304803,1705055441237,-500.0,0.00027391,2]
[311304805,1705055441246,-500.0,0.00027391,2]
[311304806,1705055441255,-1000.0,0.00027391,2]
[311304808,1705055441264,-500.0,0.00027391,2]
[311304809,1705055441274,-500.0,0.00027391,2]
[311304811,1705055441283,-500.0,0.00027391,2]
[311304813,1705055441292,-502.74745374,0.00027391,2]
[311304814,1705055441302,-225.43281937,0.00027391,2]
[311304816,1705055441311,-500.0,0.00027391,2]
[311304818,1705055441320,-500.0,0.00027391,2]
[311304819,1705055441328,-500.0,0.00027391,2]
[311304821,1705055441337,-500.0,0.00027391,2]
[311304822,1705055441345,-500.0,0.00027391,2]
[311304824,1705055441354,-500.0,0.00027391,2]
[311304826,1705055441363,-500.0,0.00027391,2]
[311304827,1705055441372,-500.0,0.00027391,2]
[311304829,1705055441380,-500.0,0.00027391,2]
[311304837,1705055441479,-500.0,0.00027391,2]
[311304839,1705055441488,-500.0,0.00027391,2]
[311304840,1705055441497,-500.0,0.00027391,2]
[311304842,1705055441507,-500.0,0.00027391,2]
[311304844,1705055441516,-500.0,0.00027391,2]
[311304845,1705055441526,-500.0,0.00027391,2]
[311304847,1705055441535,-500.0,0.00027391,2]
[311304848,1705055441544,-500.46370977,0.00027391,2]
[311304850,1705055441553,-511.78690639,0.00027391,2]
[311304852,1705055441565,-601.70361142,0.00027391,2]
[311304853,1705055441574,-500.0,0.00027391,2]
[311304855,1705055441583,-500.0,0.00027391,2]
[311304856,1705055441592,-500.0,0.00027391,2]
[311304858,1705055441601,-500.0,0.00027391,2]
[311304860,1705055441611,-500.0,0.00027391,2]
[311304862,1705055441620,-500.0,0.00027391,2]
[311304864,1705055441629,-500.0,0.00027391,2]
[311304866,1705055441639,-500.0,0.00027391,2]
[311304868,1705055441647,-414.54773656,0.00027391,2]
[311304870,1705055441656,-505.68069225,0.00027391,2]
[311304872,1705055441665,-500.0,0.00027391,2]
[311304874,1705055441674,-501.8331048,0.00027391,2]
[311304876,1705055441684,-226.54482869,0.00027391,2]
[311304878,1705055441693,-500.0,0.00027391,2]
[311304880,1705055441702,-500.0,0.00027391,2]
[311304882,1705055441712,-154.62698983,0.00027391,2]
[311304883,1705055441721,-205.36424637,0.00027391,2]
[311304884,1705055441730,-500.0,0.00027391,2]
[311304885,1705055441739,-500.0,0.00027391,2]
[311304886,1705055441748,-500.0,0.00027391,2]
[311304887,1705055441757,-500.0,0.00027391,2]
[311304888,1705055441765,-501.28507921,0.00027391,2]
[311304889,1705055441775,-500.0,0.00027391,2]
[311304890,1705055441784,-500.0,0.00027391,2]
[311304891,1705055441793,-500.0,0.00027391,2]
[311304892,1705055441801,-500.0,0.00027392,2]
[311304893,1705055441810,-600.0,0.00027397,2]
[311304894,1705055441819,-1000.0,0.00027397,2]
[311304895,1705055441828,-500.0,0.00027397,2]
[311304896,1705055441837,-500.0,0.00027397,2]
[311304897,1705055441845,-500.0,0.00027397,2]
[311304898,1705055441854,-415.48279619,0.00027397,2]
[311304899,1705055441863,-533.72,0.00027534,2]
[311304900,1705055441871,-6273.81442827,0.00027565,2]
[311304901,1705055441880,-620.00964585,0.00027581,2]
[311304902,1705055441889,-193.70018175,0.00027661,2]
[311304903,1705055441898,-753.41,0.00027661,2]
[311304904,1705055441906,-4911.94,0.00027662,2]
[311304905,1705055441915,-500.0,0.00027662,2]
[311304906,1705055441924,-562.77,0.00027662,2]
[311304907,1705055441932,-500.0,0.00027663,2]
[311304908,1705055441941,-500.0,0.00027663,2]
[311304909,1705055441949,-500.0,0.00027663,2]